bitfinex/quotes_BTCUSD_20260110
["timestamp","ask_amount","ask_price","bid_price","bid_amount"]
[1768057302574,0.0001517,90613.0,90606.0,0.01103679]
[1768057302778,0.0001517,90613.0,90608.0,0.05649949]
[1768057303228,0.0001517,90613.0,90608.0,0.04546294]
[1768057306067,0.0001517,90613.0,90606.0,0.01103679]
[1768057306461,0.0001517,90613.0,90607.0,0.01103667]
[1768057306805,0.0001517,90613.0,90606.0,0.01103679]
[1768057307010,0.0001517,90613.0,90605.0,0.01103691]
[1768057307219,0.00011112,90613.0,90606.0,0.01103679]
[1768057307597,0.00011112,90613.0,90607.0,0.01103667]
[1768057307798,0.00011112,90613.0,90605.0,0.01103691]
[1768057308995,0.00011112,90613.0,90606.0,0.01103679]
[1768057309374,0.00011112,90613.0,90604.0,0.07861998]
[1768057309553,0.00011112,90613.0,90604.0,0.06758294]
[1768057309737,0.00011112,90613.0,90605.0,0.01103691]
[1768057311059,0.00011112,90613.0,90604.0,0.07861998]
[1768057311277,0.00011112,90613.0,90604.0,0.06758294]
[1768057317900,0.00011112,90613.0,90604.0,0.07861998]
[1768057318611,0.00011112,90613.0,90605.0,0.01103691]
[1768057319318,0.00011112,90613.0,90604.0,0.07861998]
[1768057319700,0.00011112,90613.0,90605.0,0.01103691]
[1768057320926,0.00011112,90613.0,90606.0,0.01103679]
[1768057321070,0.00011112,90613.0,90607.0,0.01103667]
[1768057321272,0.00011112,90613.0,90605.0,0.01103691]
[1768057321513,0.00011112,90613.0,90607.0,0.01103667]
[1768057322509,0.00011112,90613.0,90606.0,0.01103679]
[1768057322701,0.00011112,90613.0,90607.0,0.01103667]
[1768057322912,0.00011112,90613.0,90608.0,0.01103655]
[1768057323123,0.00011112,90613.0,90607.0,0.01103667]
[1768057323567,1.2e-07,90613.0,90608.0,0.01103655]
[1768057323781,1.2e-07,90613.0,90610.0,0.0110363]
[1768057323995,1.2e-07,90613.0,90608.0,0.01103655]
[1768057324203,1.2e-07,90613.0,90609.0,0.01103643]
[1768057324819,1.2e-07,90613.0,90610.0,0.0110363]
[1768057326204,7.008e-05,90613.0,90609.0,0.01103643]
[1768057326407,0.04881235,90622.0,90609.0,0.01103643]
[1768057326586,0.04881235,90622.0,90610.0,0.0110363]
[1768057328087,0.04881235,90622.0,90609.0,0.01103643]
[1768057328290,0.04881235,90622.0,90610.0,0.21954397]
[1768057328439,0.04881235,90622.0,90610.0,0.23058027]
[1768057328806,0.05984719,90622.0,90610.0,0.21954397]
[1768057329135,0.04881235,90622.0,90610.0,0.23058027]
[1768057329981,0.04881235,90622.0,90611.0,0.01103618]
[1768057330198,0.04881235,90622.0,90610.0,0.21954397]
[1768057330949,0.04881235,90622.0,90610.0,0.23058027]
[1768057331704,0.04881235,90622.0,90611.0,0.01103618]
[1768057331904,0.04881235,90622.0,90610.0,0.21954397]
[1768057332582,0.05984719,90622.0,90610.0,0.21954397]
[1768057332981,0.04881235,90622.0,90610.0,0.21954397]
[1768057333755,0.05984719,90622.0,90610.0,0.21954397]
[1768057334572,0.04881235,90622.0,90610.0,0.21954397]
[1768057334776,0.04881235,90622.0,90610.0,0.23058027]
[1768057335284,0.04881235,90622.0,90610.0,0.21954397]
[1768057335947,0.05984719,90622.0,90610.0,0.21954397]
[1768057336122,0.05984719,90622.0,90610.0,0.23058027]
[1768057336123,0.04881235,90622.0,90610.0,0.23058027]
[1768057336756,0.04881235,90622.0,90611.0,0.01103618]
[1768057336959,0.04881235,90622.0,90610.0,0.23058027]
[1768057337164,0.04881235,90622.0,90610.0,0.21954397]
[1768057337995,0.05984719,90622.0,90607.0,0.01103667]
[1768057338145,0.01103509,90620.0,90610.0,0.21954397]
[1768057338360,0.01103521,90619.0,90610.0,0.21954397]
[1768057338921,0.01103509,90620.0,90610.0,0.21954397]
[1768057339129,0.04883013,90621.0,90610.0,0.21954397]
[1768057339338,0.05986509,90621.0,90610.0,0.21954397]
[1768057339956,0.04883013,90621.0,90610.0,0.21954397]
[1768057341548,0.05986509,90621.0,90610.0,0.21954397]
[1768057341694,0.01103509,90620.0,90610.0,0.21954397]
[1768057343406,0.04883013,90621.0,90610.0,0.21954397]
[1768057344381,0.05986509,90621.0,90610.0,0.21954397]
[1768057344606,0.04883013,90621.0,90610.0,0.21954397]
[1768057345014,0.04883013,90621.0,90610.0,0.23058027]
[1768057345801,0.04883013,90621.0,90611.0,0.01103618]
[1768057346001,0.04883013,90621.0,90610.0,0.0110363]
[1768057346204,0.04883013,90621.0,90610.0,0.23058027]
[1768057346415,0.04883013,90621.0,90611.0,0.01103618]
[1768057347289,0.04883013,90621.0,90612.0,0.01103606]
[1768057347490,0.04883013,90621.0,90613.0,0.01103594]
[1768057347734,0.04883013,90621.0,90615.0,0.06621405]
[1768057347989,0.0001517,90622.0,90616.0,0.01103557]
[1768057348425,0.0001517,90622.0,90615.0,0.0110357]
[1768057349212,0.0001517,90622.0,90612.0,0.01103606]
[1768057349411,0.0001517,90622.0,90611.0,0.01103618]
[1768057349614,0.0001517,90622.0,90610.0,0.0110363]
[1768057350594,0.0001517,90622.0,90611.0,0.01103618]
[1768057350854,0.0001517,90622.0,90612.0,0.01103606]
[1768057351054,0.0001517,90622.0,90611.0,0.01103618]
[1768057351650,0.0001517,90622.0,90613.0,0.01103594]
[1768057352373,0.0001517,90622.0,90611.0,0.01103618]
[1768057352554,0.0001517,90622.0,90612.0,0.01103606]
[1768057353166,0.0001517,90622.0,90613.0,0.01103594]
[1768057353511,0.0001517,90622.0,90612.0,0.01103606]
[1768057354851,0.0001517,90622.0,90613.0,0.01103594]
[1768057356142,0.0001517,90622.0,90612.0,0.01103606]
[1768057356830,0.0001517,90622.0,90613.0,0.01103594]
[1768057358218,0.0001517,90622.0,90612.0,0.01103606]
[1768057359330,0.0001517,90622.0,90613.0,0.01103594]
[1768057359837,0.0001517,90622.0,90612.0,0.01103606]
[1768057361194,0.0001517,90622.0,90613.0,0.01103594]
[1768057361528,0.0001517,90622.0,90612.0,0.01103606]
[1768057361762,0.0001517,90622.0,90614.0,0.01103582]
[1768057361893,0.0001517,90622.0,90613.0,0.01103594]
[1768057362590,0.0001517,90622.0,90614.0,0.01103582]
[1768057362789,0.0001517,90622.0,90613.0,0.01103594]
[1768057362995,0.0001517,90622.0,90614.0,0.01103582]
[1768057364549,0.0001517,90622.0,90614.0,0.06029838]
[1768057364752,0.0001517,90631.0,90623.0,0.01103472]
[1768057364929,0.0001517,90631.0,90622.0,0.0604484]
[1768057365128,0.0001517,90631.0,90618.0,0.01103533]
[1768057365330,0.01103387,90630.0,90617.0,0.04926256]
[1768057365672,0.01103411,90628.0,90617.0,0.04926256]
[1768057365873,0.01103411,90628.0,90613.0,0.01103594]
[1768057366194,0.01103411,90628.0,90614.0,0.01103582]
[1768057366393,0.01103399,90629.0,90614.0,0.01103582]
[1768057366712,0.01103411,90628.0,90614.0,0.01103582]
[1768057367374,0.01103411,90628.0,90615.0,0.0110357]
[1768057367696,0.01103399,90629.0,90615.0,0.0110357]
[1768057369161,0.01103387,90630.0,90615.0,0.0110357]
[1768057370174,0.01103387,90630.0,90616.0,0.01103557]
[1768057370580,0.01103387,90630.0,90617.0,0.01103545]
[1768057370897,0.01103387,90630.0,90616.0,0.01103557]
[1768057371327,0.01118545,90631.0,90617.0,0.01103545]
[1768057371547,0.01103387,90630.0,90616.0,0.01103557]
[1768057372712,0.01103399,90629.0,90611.0,0.10444324]
[1768057372867,0.01118545,90631.0,89397.0,0.0004762]
[1768057372868,0.0110346,90624.0,90613.0,0.02208]
[1768057373265,0.01103448,90625.0,90613.0,0.02208]
[1768057373711,0.0110346,90624.0,90613.0,0.02208]
[1768057374118,0.0110346,90624.0,90607.0,0.10373426]
[1768057374119,0.01103521,90619.0,90607.0,0.0485514]
[1768057374274,0.05750103,90619.0,90608.0,0.02208]
[1768057375276,0.01103533,90618.0,90608.0,0.02208]
[1768057377341,0.01103521,90619.0,90608.0,0.02208]
[1768057377528,0.01103533,90618.0,90608.0,0.02208]
[1768057377691,0.01103521,90619.0,90608.0,0.02208]
[1768057378094,0.01103509,90620.0,90608.0,0.02208]
[1768057378631,0.01103521,90619.0,90608.0,0.02208]
[1768057378892,0.01103509,90620.0,90608.0,0.02208]
[1768057379594,0.01103496,90621.0,90608.0,0.02208]
[1768057380152,0.01103509,90620.0,90608.0,0.02208]
[1768057380356,0.01103521,90619.0,90608.0,0.02208]
[1768057381334,0.01103533,90618.0,90608.0,0.02208]
[1768057381687,0.01103521,90619.0,90608.0,0.02208]
[1768057382578,0.01103509,90620.0,90608.0,0.02208]
[1768057384099,0.01103496,90621.0,90608.0,0.02208]
[1768057384681,0.06620835,90623.0,90608.0,0.03311655]
[1768057384863,0.01103496,90621.0,90608.0,0.02208]
[1768057385806,0.01103484,90622.0,90608.0,0.03311655]
[1768057386207,0.06041721,90621.0,90608.0,0.02208]
[1768057386496,0.01103509,90620.0,90608.0,0.02208]
[1768057390002,0.01103521,90619.0,90608.0,0.02208]
[1768057390271,0.01103509,90620.0,90608.0,0.02208]
[1768057390859,0.06041721,90621.0,90608.0,0.02208]
[1768057391470,0.06041721,90621.0,90607.0,0.05958807]
[1768057391673,0.06041721,90621.0,90608.0,0.02208]
[1768057392293,0.06041721,90621.0,90607.0,0.05958807]
[1768057392504,0.06041721,90621.0,90608.0,0.02208]
[1768057392729,0.04938225,90621.0,90609.0,0.01103643]
[1768057394146,0.04938225,90621.0,90608.0,0.02208]
[1768057394340,0.04938225,90621.0,90608.0,0.03311655]
[1768057394944,0.06041721,90621.0,90608.0,0.03311655]
[1768057395087,0.04938225,90621.0,90608.0,0.03311655]
[1768057395542,0.06041721,90621.0,90608.0,0.02208]
[1768057396346,0.01103521,90619.0,90608.0,0.02208]
[1768057396992,0.01103533,90618.0,90608.0,0.02208]
[1768057397958,0.01103521,90619.0,90608.0,0.02208]
[1768057398704,0.01103533,90618.0,90608.0,0.02208]
[1768057399025,0.01103521,90619.0,90608.0,0.02208]
[1768057399297,0.06041721,90621.0,90608.0,0.02208]
[1768057399721,0.01103509,90620.0,90608.0,0.02208]
[1768057400295,0.01103521,90619.0,90608.0,0.02208]
[1768057401720,0.01103509,90620.0,90608.0,0.02208]
[1768057402125,0.06041721,90621.0,90608.0,0.02208]
[1768057403607,0.06041721,90621.0,90608.0,0.03311655]
[1768057403812,0.06041721,90621.0,90608.0,0.02208]
[1768057404461,0.04938225,90621.0,90608.0,0.03311655]
[1768057404657,0.06041721,90621.0,90608.0,0.02208]
[1768057405216,0.01103509,90620.0,90608.0,0.02208]
[1768057406045,0.01103521,90619.0,90608.0,0.02208]
[1768057408601,0.01103533,90618.0,90608.0,0.02208]
[1768057408762,0.01103521,90619.0,90608.0,0.02208]
[1768057410897,0.01103533,90618.0,90608.0,0.02208]
[1768057411114,0.01103521,90619.0,90608.0,0.02208]
[1768057412329,0.01103521,90619.0,90607.0,0.0485514]
[1768057412530,0.01103533,90618.0,90608.0,0.02208]
[1768057413350,0.01103521,90619.0,90608.0,0.02208]
[1768057413514,0.01103509,90620.0,90608.0,0.02208]
[1768057413938,0.01103509,90620.0,90610.0,0.21948923]
[1768057414142,0.01103509,90620.0,90608.0,0.02208]
[1768057415797,0.06041721,90621.0,90608.0,0.02208]
[1768057416223,0.01103509,90620.0,90608.0,0.02208]
[1768057416788,0.06041721,90621.0,90608.0,0.02208]
[1768057419087,0.04938225,90621.0,90608.0,0.03311655]
[1768057419991,0.06041721,90621.0,90610.0,0.21948923]
[1768057420900,0.01103509,90620.0,90608.0,0.02208]
[1768057421293,0.06041721,90621.0,90608.0,0.02208]
[1768057421505,0.01103509,90620.0,90608.0,0.02208]
[1768057421722,0.01103521,90619.0,90608.0,0.02208]
[1768057423377,0.01103533,90618.0,90608.0,0.02208]
[1768057424369,0.01103521,90619.0,90608.0,0.02208]
[1768057425883,0.01103509,90620.0,90608.0,0.02208]
[1768057426088,0.01103521,90619.0,90608.0,0.02208]
[1768057426310,0.06041721,90621.0,90608.0,0.02208]
[1768057427581,0.06041721,90621.0,90608.0,0.03311655]
[1768057428317,0.06041721,90621.0,90608.0,0.02208]
[1768057430802,0.06041721,90621.0,90608.0,0.03311655]
[1768057431216,0.04938225,90621.0,90608.0,0.03311655]
[1768057431619,0.06041721,90621.0,90608.0,0.02208]
[1768057432315,0.06041721,90621.0,90608.0,0.03311655]
[1768057432468,0.04938225,90621.0,90608.0,0.03311655]
[1768057432664,0.06041721,90621.0,90608.0,0.02208]
[1768057433593,0.04938225,90621.0,90608.0,0.02208]
[1768057433949,0.04938225,90621.0,90608.0,0.03311655]
[1768057435641,0.04938225,90621.0,90608.0,0.02208]
[1768057435642,0.06041721,90621.0,90608.0,0.02208]
[1768057439909,0.04938225,90621.0,90608.0,0.03311655]
[1768057440532,0.06041721,90621.0,90608.0,0.02208]
[1768057440969,0.11559206,90621.0,90608.0,0.02208]
[1768057441165,0.01103521,90619.0,90608.0,0.02208]
[1768057441346,0.01103509,90620.0,90608.0,0.02208]
[1768057442030,0.06041721,90621.0,90608.0,0.02208]
[1768057442887,0.04938225,90621.0,90608.0,0.02208]
[1768057443063,0.06041721,90621.0,90608.0,0.03311655]
[1768057443266,0.06041721,90621.0,90608.0,0.02208]
[1768057443477,0.04938225,90621.0,90608.0,0.03311655]
[1768057443674,0.04938225,90621.0,90608.0,0.02208]
[1768057443868,0.04938225,90621.0,90608.0,0.03311655]
[1768057444065,0.04938225,90621.0,90610.0,0.0110363]
[1768057444720,0.04938225,90621.0,90610.0,0.06621746]
[1768057444880,0.04603469,90627.0,90621.0,0.000999]
[1768057445461,0.02208,90628.0,90617.0,0.26550996]
[1768057445800,0.0001517,90631.0,90629.0,0.04602073]
[1768057446298,7e-07,90631.0,90627.0,0.05705496]
[1768057446501,7e-07,90631.0,90628.0,0.05705484]
[1768057447226,7e-07,90631.0,90628.0,0.04602073]
[1768057447421,7e-07,90631.0,90628.0,0.01103411]
[1768057447853,7e-07,90631.0,90627.0,0.01103423]
[1768057448003,7e-07,90631.0,90628.0,0.01103411]
[1768057449341,7e-07,90631.0,90630.0,0.05516936]
[1768057450259,7e-07,90631.0,90628.0,0.06620416]
[1768057450418,7e-07,90631.0,90629.0,0.05516982]
[1768057450823,7e-07,90631.0,90628.0,0.01103411]
[1768057451229,0.0001517,90640.0,90632.0,0.01103363]
[1768057451548,0.0001517,90640.0,90628.0,0.01103411]
[1768057451755,0.0001517,90640.0,90629.0,0.01103399]
[1768057452139,0.0001517,90640.0,90630.0,0.01103387]
[1768057452321,0.0001517,90640.0,90631.0,0.01103375]
[1768057452521,0.0001517,90640.0,90630.0,0.01103387]
[1768057452522,0.0001517,90640.0,90630.0,0.21948923]
[1768057452994,0.0001517,90640.0,90630.0,0.2305231]
[1768057453344,0.0001517,90640.0,90630.0,0.21948923]
[1768057454983,0.0001517,90640.0,90631.0,0.01103375]
[1768057456048,0.0001517,90640.0,90632.0,0.01103363]
[1768057458372,0.04592435,90641.0,90632.0,0.01103363]
[1768057459136,0.04592435,90641.0,90633.0,0.0110335]
[1768057459259,0.04626762,90646.0,90634.0,0.01103338]
[1768057459879,0.04626762,90646.0,90633.0,0.0110335]
[1768057461150,0.04626762,90646.0,90634.0,0.01103338]
[1768057461285,0.01103204,90645.0,90630.0,0.21948923]
[1768057461489,0.05706673,90645.0,90631.0,0.01103375]
[1768057462498,0.01103216,90644.0,90630.0,0.01103387]
[1768057462702,0.05706685,90644.0,90630.0,0.2305231]
[1768057465556,0.04603469,90644.0,90631.0,0.01103375]
[1768057465965,0.05706685,90644.0,90630.0,0.2305231]
[1768057466810,0.01103229,90643.0,90626.0,0.05705509]
[1768057467019,0.01103229,90643.0,90630.0,0.21948923]
[1768057467658,0.0661943,90643.0,90630.0,0.21948923]
[1768057467878,0.05706722,90641.0,90626.0,0.04602073]
[1768057468089,0.04603469,90641.0,90626.0,0.05705509]
[1768057468302,0.05706722,90641.0,90630.0,0.21948923]
[1768057468532,0.05706722,90641.0,90627.0,0.01103423]
[1768057468741,0.04603469,90641.0,90628.0,0.01103411]
[1768057469277,0.01103265,90640.0,90626.0,0.05705509]
[1768057469520,0.01103277,90639.0,90626.0,0.04602073]
[1768057469759,0.01103265,90640.0,90626.0,0.05705509]
[1768057469970,0.05706722,90641.0,90627.0,0.01103423]
[1768057470535,0.04603469,90641.0,90627.0,0.01103423]
[1768057470735,0.05706722,90641.0,90627.0,0.01103423]
[1768057471166,0.04603469,90641.0,90627.0,0.01103423]
[1768057471342,0.05706722,90641.0,90627.0,0.01103423]
[1768057471539,0.05706722,90641.0,90626.0,0.11222675]
[1768057471540,0.01103265,90640.0,90626.0,0.05705509]
[1768057471894,0.05706722,90641.0,90626.0,0.05705509]
[1768057473369,0.05706722,90641.0,90627.0,0.01103423]
[1768057473775,0.05706722,90641.0,90628.0,0.01103411]
[1768057473982,0.04603469,90641.0,90628.0,0.01103411]
[1768057474420,0.04603469,90641.0,90627.0,0.01103423]
[1768057474421,0.05706722,90641.0,90627.0,0.01103423]
[1768057474729,0.04603469,90641.0,90628.0,0.01103411]
[1768057475864,0.04603469,90641.0,90629.0,0.01103399]
[1768057476592,0.04603469,90641.0,90631.0,0.01103375]
[1768057476796,0.04603469,90641.0,90630.0,0.01103387]
[1768057478088,0.04603469,90641.0,90631.0,0.01103375]
[1768057478692,0.04603469,90641.0,90633.0,0.0110335]
[1768057479621,0.04603469,90641.0,90632.0,0.01103363]
[1768057479752,0.04603469,90641.0,90633.0,0.0110335]
[1768057479951,0.04603469,90641.0,90630.0,0.01103387]
[1768057480223,0.04603469,90641.0,90631.0,0.01103375]
[1768057480847,0.04603469,90641.0,90632.0,0.01103363]
[1768057481044,0.04594449,90641.0,90633.0,0.0110335]
[1768057481698,0.04594449,90641.0,90632.0,0.01103363]
[1768057484276,0.04594449,90641.0,90631.0,0.01103375]
[1768057484542,0.04594449,90641.0,90628.0,0.06620419]
[1768057484736,0.04594449,90641.0,90631.0,0.01103375]
[1768057485535,0.04594449,90641.0,90630.0,0.01103387]
[1768057485872,0.04594449,90641.0,90631.0,0.01103375]
[1768057486666,0.04764921,90645.0,90628.0,0.01103411]
[1768057486868,0.0586815,90643.0,90629.0,0.01103399]
[1768057487455,0.04764921,90643.0,90630.0,0.01103387]
[1768057487661,0.0586815,90643.0,90629.0,0.01103399]
[1768057487891,0.04764921,90643.0,90630.0,0.01103387]
[1768057489522,0.04764921,90643.0,90631.0,0.01103375]
[1768057489687,0.04764921,90643.0,90630.0,0.01103387]
[1768057492585,0.04764921,90643.0,90631.0,0.01103375]
[1768057494548,0.04764921,90643.0,90630.0,0.01103387]
[1768057495997,0.01103241,90642.0,90628.0,0.01103411]
[1768057496382,0.0586815,90643.0,90629.0,0.01103399]
[1768057496625,0.0586815,90643.0,90628.0,0.01103411]
[1768057498172,0.0586815,90643.0,90629.0,0.01103399]
[1768057499437,0.01103241,90642.0,90626.0,0.05705509]
[1768057499579,0.01103241,90642.0,90628.0,0.01103411]
[1768057500000,0.01103241,90642.0,90627.0,0.01103423]
[1768057500214,0.01103241,90642.0,90628.0,0.01103411]
[1768057500421,0.01103241,90642.0,90627.0,0.01103423]
[1768057500624,0.01103241,90642.0,90628.0,0.01103411]
[1768057501089,0.01103241,90642.0,90626.0,0.04602073]
[1768057501276,0.01103241,90642.0,90627.0,0.01103423]
[1768057501472,0.01103253,90641.0,90627.0,0.01103423]
[1768057501674,0.0110329,90638.0,90626.0,0.04602073]
[1768057501813,0.04790231,90641.0,90626.0,0.04602073]
[1768057502012,0.00023293,90646.0,90617.0,0.0001517]
[1768057502013,0.05517192,90626.0,90617.0,0.0001517]
[1768057502219,0.01103448,90625.0,90617.0,0.0001517]
[1768057503168,0.00010564,90626.0,90617.0,0.0001517]
[1768057503378,0.01114,90626.0,90617.0,0.0001517]
[1768057505441,0.04578625,90624.0,90617.0,0.0001517]
[1768057505694,0.01103472,90623.0,90617.0,0.0001517]
[1768057505910,0.05682097,90623.0,90617.0,0.0001517]
[1768057506286,0.04578625,90623.0,90617.0,0.0001517]
[1768057507139,0.05682097,90623.0,90617.0,0.0001517]
[1768057507773,0.04578625,90623.0,90617.0,0.0001517]
[1768057508172,0.00287275,90622.0,90617.0,0.0001517]
[1768057517859,0.048659,90622.0,90617.0,0.0001517]
[1768057518059,0.04578625,90621.0,90617.0,0.0001517]
[1768057519223,0.01103472,90623.0,90617.0,0.0001517]
[1768057521076,0.00287275,90622.0,90617.0,0.0001517]
[1768057523943,0.01390759,90622.0,90617.0,0.0001517]
[1768057529326,0.01103496,90621.0,90617.0,0.0001517]
[1768057529554,0.01103509,90620.0,90617.0,0.0001517]
[1768057529729,0.01103496,90621.0,90617.0,0.0001517]
[1768057530113,0.01390759,90622.0,90617.0,0.0001517]
[1768057530340,0.01103509,90620.0,90617.0,0.0001517]
[1768057531351,0.01103496,90621.0,90617.0,0.0001517]
[1768057531553,0.0110357,90615.0,90608.0,0.0001517]
[1768057532316,0.01103582,90614.0,90608.0,0.0001517]
[1768057533140,0.00287275,90613.0,90608.0,0.0001517]
[1768057535213,0.00187375,90613.0,90608.0,0.0001517]
[1768057548266,0.06001844,90620.0,90608.0,0.0001517]
[1768057548780,0.04898335,90620.0,90608.0,0.0001517]
[1768057550077,0.06001844,90620.0,90608.0,0.0001517]
[1768057550276,0.00187375,90619.0,90608.0,0.0001517]
[1768057551049,0.01103533,90618.0,90608.0,0.0001517]
[1768057552683,0.01103545,90617.0,90608.0,0.0001517]
[1768057552904,0.01103533,90618.0,90608.0,0.0001517]
[1768057553034,0.01103521,90619.0,90608.0,0.0001517]
[1768057553440,0.06001844,90620.0,90608.0,0.0001517]
[1768057554121,0.00187375,90618.0,90608.0,0.0001517]
[1768057561229,0.01290908,90618.0,90608.0,0.0001066]
[1768057561726,0.01290908,90618.0,90608.0,6.151e-05]
[1768057562488,0.00187375,90618.0,90608.0,6.151e-05]
[1768057566849,0.00187375,90618.0,90608.0,0.23064242]
[1768057567044,0.00187375,90618.0,90610.0,0.0110363]
[1768057567311,0.00187375,90618.0,90611.0,0.0662171]
[1768057567508,0.00187375,90618.0,90612.0,0.01103606]
[1768057567710,0.00187375,90618.0,90608.0,0.26846692]
[1768057568258,0.00187375,90618.0,90608.0,0.27950347]
[1768057568454,0.00187375,90618.0,90608.0,0.27944196]
[1768057569314,0.02208,90622.0,90608.0,0.27944196]
[1768057569721,0.03311484,90622.0,90608.0,0.26840541]
[1768057569895,0.03311484,90622.0,90608.0,0.27944196]
[1768057570110,0.01103509,90620.0,90608.0,0.26840541]
[1768057570314,0.01290871,90621.0,90608.0,0.26840541]
[1768057571172,0.01290871,90621.0,90608.0,0.27944196]
[1768057571310,0.01290871,90621.0,90608.0,0.26840541]
[1768057572066,0.01103509,90620.0,90608.0,0.26840541]
[1768057572279,0.00187375,90621.0,90608.0,0.27944196]
[1768057572891,0.01290871,90621.0,90608.0,0.27939687]
[1768057573273,0.00187375,90621.0,90608.0,0.27939687]
[1768057573473,0.00187375,90621.0,90608.0,0.04881596]
[1768057573668,0.00187375,90621.0,90610.0,0.21954436]
[1768057575808,0.01290871,90621.0,90610.0,0.21954436]
[1768057576198,0.00187375,90621.0,90610.0,0.21954436]
[1768057576570,0.00187375,90621.0,90610.0,0.23058066]
[1768057577450,0.00187375,90621.0,90611.0,0.01103618]
[1768057578429,0.00187375,90621.0,90610.0,0.23058066]
[1768057578634,0.00187375,90621.0,90611.0,0.01103618]
[1768057579666,0.00187375,90621.0,90611.0,0.01099109]
[1768057580432,0.00187375,90621.0,90612.0,0.01103606]
[1768057580710,0.00187375,90621.0,90611.0,0.01099109]
[1768057580855,0.00187375,90621.0,90612.0,0.01103606]
[1768057581048,0.00187375,90621.0,90613.0,0.01103594]
[1768057581450,0.00010564,90626.0,90617.0,0.01103545]
[1768057581659,0.02208,90627.0,90619.0,0.01103521]
[1768057581860,0.02208,90627.0,90620.0,0.01103509]
[1768057582060,0.04867224,90631.0,90619.0,0.04886105]
[1768057582061,0.0001517,90631.0,90619.0,0.04886105]
[1768057582305,0.0001517,90631.0,90621.0,0.01103496]
[1768057582476,0.0001517,90631.0,90620.0,0.26840541]
[1768057582715,0.0001517,90631.0,90620.0,0.04886105]
[1768057583256,0.01103387,90630.0,90620.0,0.04886105]
[1768057583979,0.01103387,90630.0,90617.0,0.02208]
[1768057584383,0.01103411,90628.0,90617.0,0.02208]
[1768057584810,0.01103399,90629.0,90617.0,0.02208]
[1768057585004,0.01103411,90628.0,90617.0,0.02208]
[1768057585433,0.01103399,90629.0,90617.0,0.02208]
[1768057585939,0.01103387,90630.0,90617.0,0.02208]
[1768057588021,0.0001517,90631.0,90618.0,0.01103533]
[1768057588324,0.01118545,90631.0,90617.0,0.03311545]
[1768057588695,0.0001517,90631.0,90618.0,0.01103533]
[1768057589830,0.0001517,90631.0,90619.0,0.01103521]
[1768057591179,0.0001517,90631.0,90618.0,0.01103533]
[1768057591377,0.0001517,90631.0,90619.0,0.01103521]
[1768057591595,0.0001517,90631.0,90618.0,0.01103533]
[1768057593114,0.01103399,90629.0,90617.0,0.02208]
[1768057593321,0.05960603,90629.0,90617.0,0.02208]
[1768057593531,0.04857204,90629.0,90617.0,0.02208]
[1768057593734,0.05960603,90629.0,90617.0,0.02208]
[1768057594148,0.04857204,90629.0,90617.0,0.02208]
[1768057594735,0.05960603,90629.0,90617.0,0.02208]
[1768057594942,0.04857204,90629.0,90617.0,0.02208]
[1768057595753,0.05960603,90629.0,90617.0,0.02208]
[1768057595957,0.04857204,90629.0,90617.0,0.02208]
[1768057599269,0.04857204,90629.0,90617.0,0.03311545]
[1768057599759,0.04857204,90629.0,90617.0,0.02208]
[1768057599969,0.04857204,90629.0,90617.0,0.03311545]
[1768057600864,0.04857204,90629.0,90617.0,0.02208]
[1768057600865,0.05960603,90629.0,90617.0,0.02208]
[1768057601634,0.04857204,90629.0,90617.0,0.02208]
[1768057603751,0.05960603,90629.0,90617.0,0.02208]
[1768057604825,0.04857204,90629.0,90617.0,0.02208]
[1768057605031,0.05960603,90629.0,90617.0,0.02208]
[1768057605189,0.04857204,90629.0,90617.0,0.02208]
[1768057607223,0.05960603,90629.0,90617.0,0.02208]
[1768057607377,0.04857204,90629.0,90617.0,0.02208]
[1768057608398,0.04857204,90629.0,90617.0,0.03311545]
[1768057609357,0.04857204,90629.0,90618.0,0.01103533]
[1768057612201,0.04857204,90629.0,90617.0,0.03311545]
[1768057612570,0.04857204,90629.0,90617.0,0.01103545]
[1768057612778,0.04857204,90629.0,90618.0,0.03311533]
[1768057614052,0.04857204,90629.0,90618.0,0.02208]
[1768057614955,0.04857204,90629.0,90618.0,0.03311533]
[1768057615616,0.04857204,90629.0,90618.0,0.02208]
[1768057616424,0.01103411,90628.0,90618.0,0.02198982]
[1768057616640,0.05960603,90629.0,90618.0,0.02198982]
[1768057618366,0.01103411,90628.0,90618.0,0.02198982]
[1768057618588,0.05960603,90629.0,90618.0,0.02198982]
[1768057619377,0.04857204,90629.0,90618.0,0.02198982]
[1768057620312,0.04857204,90629.0,90618.0,0.03302515]
[1768057620758,0.04857204,90629.0,90618.0,0.02198982]
[1768057621289,0.04857204,90629.0,90618.0,0.03302515]
[1768057621491,0.04857204,90629.0,90618.0,0.02198982]
[1768057623737,0.04857204,90629.0,90618.0,0.03302515]
[1768057625282,0.04857204,90629.0,90618.0,0.02198982]
[1768057625466,0.04857204,90629.0,90618.0,0.03302515]
[1768057626962,0.04857204,90629.0,90618.0,0.02198982]
[1768057627633,0.04857204,90629.0,90618.0,0.03302515]
[1768057629212,0.04857204,90629.0,90618.0,0.02198982]
[1768057629887,0.04857204,90629.0,90618.0,0.03302515]
[1768057631327,0.04857204,90629.0,90618.0,0.02198982]
[1768057631533,0.05960603,90629.0,90618.0,0.02198982]
[1768057631746,0.05960603,90629.0,90618.0,0.02194473]
[1768057632380,0.04857204,90629.0,90618.0,0.02194473]
[1768057632598,0.000999,90618.0,90613.0,0.02208]
[1768057632808,0.01103436,90626.0,90613.0,0.02208]
[1768057632809,0.04782875,90625.0,90613.0,0.02208]
[1768057633012,0.05886323,90625.0,90613.0,0.02208]
[1768057633207,0.04782875,90625.0,90613.0,0.02208]
[1768057633574,0.04782875,90623.0,90613.0,0.02208]
[1768057636867,0.04782875,90620.0,90613.0,0.02208]
[1768057641526,0.04782875,90620.0,90609.0,0.01103643]
[1768057641769,0.04782875,90620.0,90609.0,0.03311643]
[1768057643397,0.04782875,90620.0,90609.0,0.02208]
[1768057643560,0.04782875,90620.0,90609.0,0.03311643]
[1768057643972,0.04782875,90620.0,90609.0,0.02208]
[1768057644824,0.04782875,90620.0,90609.0,0.03311643]
[1768057646745,0.04782875,90620.0,90609.0,0.02208]
[1768057647611,0.04782875,90620.0,90609.0,0.03311643]
[1768057648031,0.04782875,90620.0,90609.0,0.02208]
[1768057648630,0.04782875,90620.0,90609.0,0.03311643]
[1768057650939,0.04782875,90620.0,90610.0,0.0110363]
[1768057651366,0.04782875,90620.0,90609.0,0.03311643]
[1768057651570,0.04782875,90620.0,90610.0,0.0110363]
[1768057652078,0.04782875,90620.0,90609.0,0.03311643]
[1768057652439,0.04782875,90620.0,90610.0,0.0110363]
[1768057652682,0.04782875,90620.0,90609.0,0.02208]
[1768057653687,0.05886384,90620.0,90609.0,0.02208]
[1768057654295,0.04782875,90620.0,90609.0,0.02208]
[1768057654599,0.04782875,90620.0,90610.0,0.21948958]
[1768057654964,0.04972348,90619.0,90610.0,0.21948958]
[1768057655522,0.01103533,90618.0,90610.0,0.24156958]
[1768057655674,0.06075869,90619.0,90610.0,0.24156958]